Organisation Name,Organisation Code,Directorate/Service,Service Category Label,Service Code,Supplier Name,Supplier Reference,Payment Date,Transaction Number,Net Payment,Purpose of Spend
North West Leicestershire District Council,31UH,Leisure Centres,Hermitage Leisure Centre,HLC,Esg Pool Ventilation Ltd,A000521,24/01/2018,1353949,759.05,Swimming Pool Ventilation
North West Leicestershire District Council,31UH,Housing Repairs,HRA Housing Repairs & Maintenance,HRAHRM,Tunstall Healthcare (UK) Limited,A001701,10/01/2018,1354203,725,Alarm system repair and maintainance
North West Leicestershire District Council,31UH,Street Management,Environment Transport,ENOT,Ford & Slater Group Ltd,A000625,24/01/2018,1354531,696.5,Vehicle Parts
North West Leicestershire District Council,31UH,Information Technology,ICT Services,ICT,Premier Paper Group,A042438,04/01/2018,1354724,697.97,Consumable Materials
North West Leicestershire District Council,31UH,Street Management,Environment - Street Scene,ESS,Premier Waste and Recycling,A031086,10/01/2018,1354739,1283.45,Waste Disposal Services
North West Leicestershire District Council,31UH,Chief Exec,Chief Executive,CHEX,Local Government Association,A002189,04/01/2018,1354765,299,Training Courses (Organised)
North West Leicestershire District Council,31UH,Leisure & Culture,Cultural Services Arts & Events,CULTEV,Field and Lawn Ltd,A042594,10/01/2018,1355111,5500,Coalville Christmas Decorations
North West Leicestershire District Council,31UH,Information Technology,ICT Services,ICT,ACS Systems (UK) Ltd T/a ACS Office Solutions,A043447,24/01/2018,1355320,421,Administrative Equipment
North West Leicestershire District Council,31UH,Information Technology,ICT Services,ICT,Sec-1,A036989,24/01/2018,1355326,10685.46,Admin Equipment-Maintenance
North West Leicestershire District Council,31UH,Housing,HRA Housing Management,HRAHM,CWH Surveyors LLP,A044437,17/01/2018,1355473,380,Legal & Professional Services
North West Leicestershire District Council,31UH,Information Technology,ICT Services,ICT,Premier Paper Group,A042438,04/01/2018,1355484,401.5,Consumable Materials
North West Leicestershire District Council,31UH,Street Management,Environment Transport,ENOT,Ford & Slater Group Ltd,A000625,24/01/2018,1355527,743.88,Vehicle Parts
North West Leicestershire District Council,31UH,Housing Strategy,Community - Housing Strategy,HS,Hometrack Data Systems HDS Ltd,A035392,04/01/2018,1355610,4500,Housing Needs Survey
North West Leicestershire District Council,31UH,Housing,HRA Housing Management,HRAHM,HQN Ltd,A007983,04/01/2018,1355883,418,Training Courses (Organised)
North West Leicestershire District Council,31UH,Property Services,Property Facilities Management,PROPFM,Thomas Cassie & Sons (Leicester) Ltd,A044078,04/01/2018,1356005,5710,Contract Payments (Other) Ext
North West Leicestershire District Council,31UH,Street Management,Environment - Street Scene,ESS,County Drains Leicester Ltd,A024295,04/01/2018,1356016,260,General Repairs
North West Leicestershire District Council,31UH,Street Management,Environment General Technician,ENOGT,Gilvar Lining Ltd,A040848,04/01/2018,1356194,465,Road Markings
North West Leicestershire District Council,31UH,Housing,HRA Performance & Business Support,HRAPBS,Michael Page International Recruitment Ltd,A041893,17/01/2018,1356197,6468,Agency Staff
North West Leicestershire District Council,31UH,Housing,HRA Performance & Business Support,HRAPBS,Michael Page International Recruitment Ltd,A041893,17/01/2018,1356198,2017.75,Agency Staff
North West Leicestershire District Council,31UH,Environmental Health,Environmental Health & Licensing,EEHL,Chine House Veterinary Hospital,A041398,04/01/2018,1356200,252.1,Vet Inspection
North West Leicestershire District Council,31UH,Housing Repairs,HRA Housing Repairs & Maintenance,HRAHRM,Severn Trent Water Limited,A001468,24/01/2018,1356215,398.99,Water Connection Services
North West Leicestershire District Council,31UH,Leisure Centres,Hood Park Leisure Centre,HPLC,Admiral Cleaning Supplies Ltd,A040930,10/01/2018,1356239,1057.63,Water Treatment
North West Leicestershire District Council,31UH,Leisure Centres,Hermitage Leisure Centre,HLC,Admiral Cleaning Supplies Ltd,A040930,04/01/2018,1356253,799.2,Water Treatment
North West Leicestershire District Council,31UH,Leisure Centres,Hermitage Leisure Centre,HLC,Technogym Uk Limited,A001642,04/01/2018,1356273,528.26,Operational Equipment
North West Leicestershire District Council,31UH,Property Services,Property Facilities Management,PROPFM,Leicestershire County Council,A000950,04/01/2018,1356301,543.9,Buildings-General repairs and Maintenance
North West Leicestershire District Council,31UH,Housing Strategy,Community - Housing Strategy,HS,MRC Community Action,A001208,24/01/2018,1356305,321,Stride Furniture Scheme
North West Leicestershire District Council,31UH,Leisure Centres,Hermitage Leisure Centre,HLC,Eaton Electrical Ltd,A044048,10/01/2018,1356306,5512.4,Buildings-General repairs and Maintenance
North West Leicestershire District Council,31UH,Legal & Democratic,Legal Services,LDLS,Timothy Leader,A044312,04/01/2018,1356323,700,External Legal Fees & Advice
North West Leicestershire District Council,31UH,Legal & Democratic,Business Development Team,BDT,InPhase Ltd,A044108,17/01/2018,1356326,9000,Performance Management Services
North West Leicestershire District Council,31UH,Communications,Corporate - Customer Services,CS,Neopost Limited,A000079,04/01/2018,1356327,3000,Postages
North West Leicestershire District Council,31UH,Property Services,Property Facilities Management,PROPFM,Water Plus Limited,A044043,04/01/2018,1356330,2888.05,Water Charges (Metered)
North West Leicestershire District Council,31UH,Housing,HRA Housing Management,HRAHM,Leicestershire County Council,A000950,04/01/2018,1356331,6825.48,Cleaning & Domestic Equipment
North West Leicestershire District Council,31UH,Street Management,Environment Transport,ENOT,Calor Gas Limited,A032686,04/01/2018,1356334,1242.6,Gas
North West Leicestershire District Council,31UH,Street Management,Environment Transport,ENOT,Westbury Industrial Supplies Limited,A009933,04/01/2018,1356335,302.49,Protective Clothing
North West Leicestershire District Council,31UH,Finance,Exchequer Services,EXCH,Leicestershire County Council,A000951,04/01/2018,1356337,10916.66,Deductions Paid Over
North West Leicestershire District Council,31UH,Finance,Exchequer Services,EXCH,Comensura Limited,A036958,04/01/2018,1356338,22201.79,Agency Staff
North West Leicestershire District Council,31UH,Housing Strategy,Community - Housing Strategy,HS,International Hotel,A000133,28/12/2017,1356339,928,Homelessness Prevention
North West Leicestershire District Council,31UH,Housing Repairs,HRA Housing Repairs & Maintenance,HRAHRM,Redacted- Personal data,A000133,28/12/2017,1356340,379.99,Compensation
North West Leicestershire District Council,31UH,Finance,Financial Planning,FINPLA,Eastleigh Borough Council,A043767,28/12/2017,1356342,1000000,Policy Lending
North West Leicestershire District Council,31UH,Legal & Democratic,Legal Services,LDLS,Leicestershire County Council,A000950,20/12/2017,1356346,250,Legal & Professional Services
North West Leicestershire District Council,31UH,Finance,Financial Planning,FINPLA,Goldman Sachs Money Market Fund,A039248,20/12/2017,1356351,200000,Policy Lending
North West Leicestershire District Council,31UH,Finance,Financial Planning,FINPLA,Scottish Widows Investment Partnerhiip,A039247,20/12/2017,1356352,4300000,Policy Lending
North West Leicestershire District Council,31UH,Finance,Financial Planning,FINPLA,Blackrock Cash Management,A039249,20/12/2017,1356353,1900000,Policy Lending
North West Leicestershire District Council,31UH,Finance,Financial Planning,FINPLA,Royal Bank of Scotland Call A/c,A040451,20/12/2017,1356354,200000,Policy Lending
North West Leicestershire District Council,31UH,Housing,HRA Housing Management,HRAHM,HMCTS,A033956,20/12/2017,1356355,3326,Legal & Professional Services
North West Leicestershire District Council,31UH,Finance,Exchequer Services,EXCH,International Hotel,A042250,20/12/2017,1356356,1469.17,Homelessness Prevention
North West Leicestershire District Council,31UH,Finance,Exchequer Services,EXCH,Wright Foundation,A042250,20/12/2017,1356356,1000,Training Courses (Organised)
North West Leicestershire District Council,31UH,Finance,Exchequer Services,EXCH,Jobserve,A042250,20/12/2017,1356356,375,Advertising
North West Leicestershire District Council,31UH,Information Technology,ICT Services,ICT,Phoenix Software Limited,A001298,10/01/2018,1356358,925.95,Admin Equipment-Maintenance
North West Leicestershire District Council,31UH,Street Management,Environment - Street Scene,ESS,S & J Electrical,A040708,17/01/2018,1356359,265,General Repairs
North West Leicestershire District Council,31UH,Finance,Financial Planning,FINPLA,KPMG LLP,A035156,04/01/2018,1356360,14912.5,Audit Commision Fees
North West Leicestershire District Council,31UH,Information Technology,ICT Services,ICT,Insight Uk,A021505,10/01/2018,1356364,480,Admin Equipment-Maintenance
North West Leicestershire District Council,31UH,Planning & Development,Environment - Development Control,EDC,Valuation Office Agency,A034291,04/01/2018,1356369,1900,External Legal Fees & Advice
North West Leicestershire District Council,31UH,Housing,HRA Performance & Business Support,HRAPBS,Michael Page International Recruitment Ltd,A041893,10/01/2018,1356375,2017.75,Agency Staff
North West Leicestershire District Council,31UH,Street Management,Environment Transport,ENOT,Johnston Sweepers Ltd,A039355,04/01/2018,1356376,538.38,Repairs - Parts
North West Leicestershire District Council,31UH,Information Technology,ICT Services,ICT,Firmstep,A030931,04/01/2018,1356439,19448,Corporate IT Licences
North West Leicestershire District Council,31UH,Corporate Director,Human Resources,HR,Inchcape Fleet Solutions,A039405,04/01/2018,1356441,319.2,Vehicle Leasing
North West Leicestershire District Council,31UH,Housing Repairs,HRA Housing Repairs & Maintenance,HRAHRM,DCB Professional Services Ltd,A044511,04/01/2018,1356444,500,Consultants Fees
North West Leicestershire District Council,31UH,Street Management,Environment Transport,ENOT,Brush Technology Ltd,A044453,04/01/2018,1356446,551,Operational Equipment
North West Leicestershire District Council,31UH,Street Management,Environment Transport,ENOT,Shepshed Auto Spares Ltd,A043917,04/01/2018,1356447,335.73,Vehicle Parts
North West Leicestershire District Council,31UH,Street Management,Environment Transport,ENOT,S & B Tyres Limited,A034071,04/01/2018,1356453,710,Vehicle Parts
North West Leicestershire District Council,31UH,Planning & Development,Building Control,EBC,Cahill Design Consulants,A044491,04/01/2018,1356456,1950,Consultants Fees
North West Leicestershire District Council,31UH,Chief Exec,Chief Executive,CHEX,Emap Publishing Ltd,A042234,10/01/2018,1356465,299,Subscriptions
North West Leicestershire District Council,31UH,Chief Exec,Chief Executive,CHEX,CBRE Ltd,A041437,10/01/2018,1356466,3750,Legal & Professional Services
North West Leicestershire District Council,31UH,Housing Strategy,Community - Housing Strategy,HS,Westcotes House Ltd,A042208,10/01/2018,1356468,380,Homelessness Prevention
North West Leicestershire District Council,31UH,Street Management,Environment Transport,ENOT,Selby's Garage (Woodhouse) Ltd,A044011,10/01/2018,1356472,332.18,Hire Of Operational Equipment
North West Leicestershire District Council,31UH,Planning & Development,Environment Community Planning,ECP,Broadland Guarding Services Ltd,A042635,10/01/2018,1356475,4385.76,Agency Staff
North West Leicestershire District Council,31UH,Property Services,Property Commercial Lettings,PROPCL,Purchase Power,A008204,10/01/2018,1356477,2298.8,Postages
North West Leicestershire District Council,31UH,Legal & Democratic,Civic Expenses,LDCE,Modern Mindset Ltd,A041118,10/01/2018,1356478,7010,Computing
North West Leicestershire District Council,31UH,Property Services,Property Facilities Management,PROPFM,Regarde Security Ltd,A013049,10/01/2018,1356479,287,Security Services
North West Leicestershire District Council,31UH,Property Services,Property Facilities Management,PROPFM,Regarde Security Ltd,A013049,10/01/2018,1356487,574,Building Security
North West Leicestershire District Council,31UH,Street Management,Environment - Street Scene,ESS,Metric Group Ltd (Sales),A028996,10/01/2018,1356488,252,Subscriptions
North West Leicestershire District Council,31UH,Street Management,Environment - Street Scene,ESS,SLH Planning Solutions Limited,A044102,10/01/2018,1356489,3518.25,Consultants Fees
North West Leicestershire District Council,31UH,Leisure & Culture,Cultural Services Arts & Events,CULTEV,Mantle Community Arts Limited,A001039,24/01/2018,1356490,3500,Grants
North West Leicestershire District Council,31UH,Property Services,Property Facilities Management,PROPFM,Admiral Cleaning Supplies Ltd,A040930,10/01/2018,1356495,374.57,Cleaning & Domestic Equipment
North West Leicestershire District Council,31UH,Property Services,Property Commercial Lettings,PROPCL,Urban Planters Leicestershire (limited),A003371,10/01/2018,1356496,552.5,Internal Decorations
North West Leicestershire District Council,31UH,Finance,Revenues,REVS,Inform CPI Ltd,A041024,24/01/2018,1356497,5000,Computing
North West Leicestershire District Council,31UH,Property Services,Property Facilities Management,PROPFM,Jordan Road Surfacing Ltd,A043240,10/01/2018,1356501,16194.87,Resurfacing Work
North West Leicestershire District Council,31UH,Housing Repairs,HRA Housing Repairs & Maintenance,HRAHRM,Leicestershire County Council,A000951,10/01/2018,1356505,11450.12,Derv
North West Leicestershire District Council,31UH,Housing Strategy,Community - Housing Strategy,HS,Westcotes House Ltd,A042208,10/01/2018,1356517,1092.5,Homelessness Prevention
North West Leicestershire District Council,31UH,Housing Strategy,Community - Housing Strategy,HS,ConsultCIH Limited,A038715,10/01/2018,1356519,298,Subscriptions
North West Leicestershire District Council,31UH,Leisure Centres,Hermitage Leisure Centre,HLC,Gladstone MRM Ltd,A024642,10/01/2018,1356528,1500,Operational Equipment
North West Leicestershire District Council,31UH,Property Services,Property Facilities Management,PROPFM,Fire Proof Ltd,A039911,10/01/2018,1356530,408.64,General Repairs
North West Leicestershire District Council,31UH,Property Services,Property Facilities Management,PROPFM,Fire Proof Ltd,A039911,10/01/2018,1356532,502.8,External Decorations
North West Leicestershire District Council,31UH,Property Services,Property Facilities Management,PROPFM,Fire Proof Ltd,A039911,10/01/2018,1356535,546.64,Service Contracts
North West Leicestershire District Council,31UH,Chief Exec,Chief Executive,CHEX,Dinc Limited T/A Dinc Creative,A044215,10/01/2018,1356538,360,Legal & Professional Services
North West Leicestershire District Council,31UH,Chief Exec,Chief Executive,CHEX,Dinc Limited T/A Dinc Creative,A044215,10/01/2018,1356539,300,Legal & Professional Services
North West Leicestershire District Council,31UH,Leisure Centres,Hermitage Leisure Centre,HLC,Admiral Cleaning Supplies Ltd,A041992,10/01/2018,1356541,333.92,Consumable Cleaning Materials/Hygiene
North West Leicestershire District Council,31UH,Street Management,Environment Transport,ENOT,Partic Motor Spares Ltd,A042528,17/01/2018,1356569,260.95,Vehicle Parts
North West Leicestershire District Council,31UH,Leisure Centres,Castle Donington Community College,CDCC,Technical Surfaces Ltd,A000516,10/01/2018,1356574,370,Astro Turf Maintenance
North West Leicestershire District Council,31UH,Information Technology,ICT Services,ICT,ACS Systems (UK) Ltd T/a ACS Office Solutions,A043447,10/01/2018,1356576,1951.6,Admin Equipment-Maintenance
North West Leicestershire District Council,31UH,Planning & Development,Environment Community Planning,ECP,Belton Village Hall,A035523,10/01/2018,1356588,500,Grants
North West Leicestershire District Council,31UH,Finance,Exchequer Services,EXCH,Comensura Limited,A036958,10/01/2018,1356599,10965.57,Agency Staff
North West Leicestershire District Council,31UH,Housing,HRA Housing Management,HRAHM,Redacted- Personal data,A044518,10/01/2018,1356602,250,Under Occupancy Incentives
North West Leicestershire District Council,31UH,Housing,HRA Housing Management,HRAHM,Redacted- Personal data,A044519,10/01/2018,1356603,250,Under Occupancy Incentives
North West Leicestershire District Council,31UH,Leisure Centres,Hermitage Leisure Centre,HLC,Water Plus Limited,A044043,10/01/2018,1356606,2065.66,Water Charges (Metered)
North West Leicestershire District Council,31UH,Property Services,Property Facilities Management,PROPFM,British Telecommunications Plc,A000233,10/01/2018,1356607,551,Telephones
North West Leicestershire District Council,31UH,Corporate Director,Human Resources,HR,Shaun Cropper & Associates,A044512,10/01/2018,1356608,4200,Corporate Training
North West Leicestershire District Council,31UH,Housing Repairs,HRA Housing Repairs & Maintenance,HRAHRM,Severn Trent Water Ltd,A044520,10/01/2018,1356613,1275.71,Water Connection Services
North West Leicestershire District Council,31UH,Corporate Director,Human Resources,HR,Health Management Ltd,A038840,10/01/2018,1356614,1060,Occupational Health Services
North West Leicestershire District Council,31UH,Housing,HRA Housing Management,HRAHM,Water Plus Limited,A044043,10/01/2018,1356617,1279,Water Charges (Metered)
North West Leicestershire District Council,31UH,Property Services,Property Facilities Management,PROPFM,Fire Proof Ltd,A039911,10/01/2018,1356623,862.08,Service Contracts
North West Leicestershire District Council,31UH,Property Services,Property Facilities Management,PROPFM,Fire Proof Ltd,A039911,10/01/2018,1356624,491.78,General Repairs
North West Leicestershire District Council,31UH,Finance,Financial Planning,FINPLA,KPMG LLP,A035156,10/01/2018,1356626,1347,Audit Commision Fees
North West Leicestershire District Council,31UH,Street Management,Environment Transport,ENOT,QSP Limited,A031365,10/01/2018,1356627,696,Training Courses (Organised)
North West Leicestershire District Council,31UH,Street Management,Environment Waste Management,ENOWM,J F Lloyd & Sons,A000991,17/01/2018,1356628,390,Hire Of Operational Equipment
North West Leicestershire District Council,31UH,Leisure & Culture,Sport & Physical Activity,SPA,BHR Pharmaceuticals Limited,A036681,24/01/2018,1356642,658.37,Local Sports Alliance
North West Leicestershire District Council,31UH,Information Technology,ICT Services,ICT,Freedom Communications (UK) Ltd,A032826,10/01/2018,1356643,1543.32,Admin Equipment-Maintenance
North West Leicestershire District Council,31UH,Housing,HRA Performance & Business Support,HRAPBS,Michael Page International Recruitment Ltd,A041893,10/01/2018,1356645,807.1,Agency Staff
North West Leicestershire District Council,31UH,Finance,Financial Planning,FINPLA,KPMG LLP,A035156,10/01/2018,1356647,3500,Audit Commision Fees
North West Leicestershire District Council,31UH,Street Management,Environment - Street Scene,ESS,The Royal Hotel,A001421,10/01/2018,1356650,7874.77,Car Park Fees
North West Leicestershire District Council,31UH,Housing Repairs,HRA Housing Repairs & Maintenance,HRAHRM,TECSERV UK LIMITED,A028261,10/01/2018,1356658,496.64,Door Entry Systems
North West Leicestershire District Council,31UH,Housing Repairs,HRA Housing Repairs & Maintenance,HRAHRM,Orbis Property Protection Ltd,A028149,10/01/2018,1356662,425,Void Property Clearance Services
North West Leicestershire District Council,31UH,Housing Repairs,HRA Housing Repairs & Maintenance,HRAHRM,Laker BMS Ltd,A031787,10/01/2018,1356664,3745.72,Housing Repairs
North West Leicestershire District Council,31UH,Housing Repairs,HRA Housing Repairs & Maintenance,HRAHRM,Woodland Property Services Ltd,A044070,10/01/2018,1356665,11752,Contract Payments (Dws) Ext
North West Leicestershire District Council,31UH,Housing Repairs,HRA Housing Repairs & Maintenance,HRAHRM,Laker BMS Ltd,A031787,10/01/2018,1356666,3510.74,Housing Repairs
North West Leicestershire District Council,31UH,Housing Repairs,HRA Housing Repairs & Maintenance,HRAHRM,Laker BMS Ltd,A031787,10/01/2018,1356667,4633.39,Housing Repairs
North West Leicestershire District Council,31UH,Housing Repairs,HRA Housing Repairs & Maintenance,HRAHRM,Laker BMS Ltd,A031787,10/01/2018,1356668,1149.04,Housing Repairs
North West Leicestershire District Council,31UH,Housing Repairs,HRA Housing Repairs & Maintenance,HRAHRM,Orbis Property Protection Ltd,A028149,10/01/2018,1356669,1560,Void Property Clearance Services
North West Leicestershire District Council,31UH,Housing Repairs,HRA Housing Repairs & Maintenance,HRAHRM,Laker BMS Ltd,A031787,10/01/2018,1356676,1925.25,Housing Repairs
North West Leicestershire District Council,31UH,Housing Repairs,HRA Housing Repairs & Maintenance,HRAHRM,Orbis Property Protection Ltd,A028149,10/01/2018,1356684,325,Void Property Clearance Services
North West Leicestershire District Council,31UH,Housing Repairs,HRA Housing Repairs & Maintenance,HRAHRM,TECSERV UK LIMITED,A028261,10/01/2018,1356685,268.57,Door Entry Systems
North West Leicestershire District Council,31UH,Housing,HRA Housing Management,HRAHM,Redacted- Personal data,A044521,10/01/2018,1356687,1000,Under Occupancy Incentives
North West Leicestershire District Council,31UH,Planning & Development,Building Control,EBC,Leicestershire County Council,A027423,10/01/2018,1356702,2695,Search Fees -LCC
North West Leicestershire District Council,31UH,Property Services,Property Commercial Lettings,PROPCL,Corona Energy Retail 4 Ltd,A035709,10/01/2018,1356703,3006.1,Contract Payments (Other) Ext
North West Leicestershire District Council,31UH,Information Technology,ICT Services,ICT,Virgin Media Business,A008908,10/01/2018,1356706,3084.87,Admin Equipment-Maintenance
North West Leicestershire District Council,31UH,Information Technology,ICT Services,ICT,Cable & Wireless Worldwide,A038473,10/01/2018,1356709,4850.74,Admin Equipment-Maintenance
North West Leicestershire District Council,31UH,Information Technology,ICT Services,ICT,Virgin Media Business,A008908,10/01/2018,1356710,1948.38,Admin Equipment-Maintenance
North West Leicestershire District Council,31UH,Street Management,Environment Transport,ENOT,Dennis Eagle Limited,A000522,10/01/2018,1356771,258.76,Repairs - Parts
North West Leicestershire District Council,31UH,Housing,HRA Performance & Business Support,HRAPBS,Taylor Bloxham Ltd,A037241,10/01/2018,1356776,847,Annual Report To Tenants
North West Leicestershire District Council,31UH,Planning & Development,Environment - Town Centre/CCTV,ECCTV,North West Leicestershire Shopmobility,A029258,10/01/2018,1356778,2000,Grants
North West Leicestershire District Council,31UH,Planning & Development,Environment - Town Centre/CCTV,ECCTV,Measham Dental Ltd,A044538,10/01/2018,1356780,2890,Grants
North West Leicestershire District Council,31UH,Corporate Director,Human Resources,HR,GatenbySanderson Limited,A034524,10/01/2018,1356781,4046,Interim Support
North West Leicestershire District Council,31UH,Finance,Financial Planning,FINPLA,Zurich Municipal,A001835,10/01/2018,1356782,1601.94,Insurances
North West Leicestershire District Council,31UH,Finance,Exchequer Services,EXCH,HM Revenues & Customs,A038465,10/01/2018,1356784,504,Payment To Inland Revenue
North West Leicestershire District Council,31UH,Street Management,Environment Parks,ENOP,Regarde Security Ltd,A013049,17/01/2018,1356788,717.5,Security Services
North West Leicestershire District Council,31UH,Housing Repairs,HRA Housing Repairs & Maintenance,HRAHRM,Western Power Distribution,A038499,10/01/2018,1356796,10699.76,Utility Connection Services
North West Leicestershire District Council,31UH,Finance,Financial Planning,FINPLA,LEEDS CITY COUNCIL,A034202,12/01/2018,1356797,3000000,Policy Lending
North West Leicestershire District Council,31UH,Finance,Financial Planning,FINPLA,Thurrock Council,A043910,12/01/2018,1356798,1000000,Policy Lending
North West Leicestershire District Council,31UH,Housing Repairs,HRA Housing Repairs & Maintenance,HRAHRM,HMCTS,A033956,12/01/2018,1356799,5767,Legal & Professional Services
North West Leicestershire District Council,31UH,Finance,Exchequer Services,EXCH,ESPO,A000958,12/01/2018,1356801,13173.05,Gas
North West Leicestershire District Council,31UH,Finance,Exchequer Services,EXCH,Total Gas & Power,A033385,12/01/2018,1356802,17504.6,Electricity
North West Leicestershire District Council,31UH,Housing,HRA Performance & Business Support,HRAPBS,Voca Limited,A031344,12/01/2018,1356804,420,Computing
North West Leicestershire District Council,31UH,Communications,Corporate - Communications,CP,Neopost Limited,A000079,12/01/2018,1356805,1600,Postages
North West Leicestershire District Council,31UH,Finance,Exchequer Services,EXCH,H M Land Registry,A000713,12/01/2018,1356806,455,Legal & Professional Services
North West Leicestershire District Council,31UH,Property Services,Property Facilities Management,PROPFM,County Drains Leicester Ltd,A024295,17/01/2018,1356811,2113.92,General Repairs
North West Leicestershire District Council,31UH,Corporate Director,Human Resources,HR,Wider Plan Ltd,A043948,17/01/2018,1356813,4451.8,Staff benefit Scheme
North West Leicestershire District Council,31UH,Street Management,Environment Transport,ENOT,Ford & Slater Group Ltd,A000625,17/01/2018,1356818,596,Vehicle Parts
North West Leicestershire District Council,31UH,Street Management,Environment Transport,ENOT,Keith Cook Training Services,A027792,17/01/2018,1356821,661.5,Training Courses (Organised)
North West Leicestershire District Council,31UH,Leisure & Culture,Cultural Services TIC,CULTIC,Leicestershire County Council,A000950,24/01/2018,1356824,675,CCTV- TIC
North West Leicestershire District Council,31UH,Housing,HRA Performance & Business Support,HRAPBS,Alysium Consulting,A043813,17/01/2018,1356827,4610,Computing
North West Leicestershire District Council,31UH,Legal & Democratic,Electoral & Land Charges,LDELC,Electoral Reform Services Limited,A038581,17/01/2018,1356829,644.04,Electoral Registration Expenditure
North West Leicestershire District Council,31UH,Legal & Democratic,Electoral & Land Charges,LDELC,Crestline Printers Limited,A000434,17/01/2018,1356830,756,Electoral Registration Expenditure
North West Leicestershire District Council,31UH,Housing Repairs,HRA Housing Repairs & Maintenance,HRAHRM,Michael Dyson Associates Ltd,A028431,17/01/2018,1356831,1568,Consultants Fees
North West Leicestershire District Council,31UH,Housing Repairs,HRA Housing Repairs & Maintenance,HRAHRM,Michael Dyson Associates Ltd,A028431,17/01/2018,1356832,1120,Consultants Fees
North West Leicestershire District Council,31UH,Housing Repairs,HRA Housing Repairs & Maintenance,HRAHRM,DMW Environmental Safety Ltd,A044203,17/01/2018,1356833,424.28,Environmental Services
North West Leicestershire District Council,31UH,Housing Repairs,HRA Housing Repairs & Maintenance,HRAHRM,BSP Consulting,A043552,17/01/2018,1356835,620,Legal & Professional Services
North West Leicestershire District Council,31UH,Housing Repairs,HRA Housing Repairs & Maintenance,HRAHRM,BSP Consulting,A043552,17/01/2018,1356836,1270,Legal & Professional Services
North West Leicestershire District Council,31UH,Information Technology,ICT Services,ICT,Reprolines,A043643,17/01/2018,1356840,295,Operational Equipment- Maintenance
North West Leicestershire District Council,31UH,Housing,HRA Performance & Business Support,HRAPBS,Alysium Consulting,A043813,17/01/2018,1356841,1075,Computing
North West Leicestershire District Council,31UH,Housing,HRA Performance & Business Support,HRAPBS,Alysium Consulting,A043813,17/01/2018,1356842,3915,Computing
North West Leicestershire District Council,31UH,Street Management,Environment - Street Scene,ESS,Sharpe Maintenance Services Ltd,A042640,17/01/2018,1356847,580,Operational Equipment
North West Leicestershire District Council,31UH,Street Management,Environment Transport,ENOT,Anderson Commercials Limited,A033469,17/01/2018,1356849,284,Good Vehicle Plating
North West Leicestershire District Council,31UH,Street Management,Environment Transport,ENOT,J F Lloyd & Sons,A000991,17/01/2018,1356850,320,Operational Equipment
North West Leicestershire District Council,31UH,Street Management,Environment Transport,ENOT,J F Lloyd & Sons,A000991,17/01/2018,1356852,350,Hire Of Operational Equipment
North West Leicestershire District Council,31UH,Information Technology,ICT Services,ICT,Premier Paper Group,A042438,17/01/2018,1356857,436,Consumable Materials
North West Leicestershire District Council,31UH,Housing,HRA Performance & Business Support,HRAPBS,Alysium Consulting,A043813,24/01/2018,1356858,8600,Computing
North West Leicestershire District Council,31UH,Housing,HRA Performance & Business Support,HRAPBS,Coalville Yellow Cabs,A041983,17/01/2018,1356860,546.5,Public Transport
North West Leicestershire District Council,31UH,Housing,HRA Housing Management,HRAHM,Water Plus Limited,A044043,17/01/2018,1356861,1608.2,Water Charges (Metered)
North West Leicestershire District Council,31UH,Finance,Financial Planning,FINPLA,Department for Communities & Local Government,A028518,12/01/2018,1356862,2268112,Subsidy Receipts & Repayments
North West Leicestershire District Council,31UH,Finance,Financial Planning,FINPLA,Leicestershire County Council,A000950,12/01/2018,1356864,3805048,Precept
North West Leicestershire District Council,31UH,Finance,Financial Planning,FINPLA,"Leicester, Leicestershire and Rutland Combined Fire Service",A028339,12/01/2018,1356869,204100,Precept
North West Leicestershire District Council,31UH,Housing,HRA Performance & Business Support,HRAPBS,Michael Page International Recruitment Ltd,A041893,17/01/2018,1356870,1614.2,Agency Staff
North West Leicestershire District Council,31UH,Finance,Financial Planning,FINPLA,Leicestershire County Council,A000950,12/01/2018,1356871,1832634,Precept
North West Leicestershire District Council,31UH,Finance,Financial Planning,FINPLA,The Disclosure & Barring Service,A027625,12/01/2018,1356872,500,Criminal Records Bureau Checks
North West Leicestershire District Council,31UH,Finance,Financial Planning,FINPLA,The Office of the Police and Crime Commissioner for Leicestershire,A007096,12/01/2018,1356873,608107.75,Precept
North West Leicestershire District Council,31UH,Finance,Exchequer Services,EXCH,HM Revenues & Customs,A038465,12/01/2018,1356874,2876.58,Deductions Paid Over
North West Leicestershire District Council,31UH,Leisure Centres,Castle Donington Community College,CDCC,Castle Donington College,A000302,17/01/2018,1356877,341,Computing
North West Leicestershire District Council,31UH,Leisure Centres,Hermitage Leisure Centre,HLC,J P Lennard Ltd,A000969,17/01/2018,1356881,993.6,Operational Equipment
North West Leicestershire District Council,31UH,Leisure Centres,Hermitage Leisure Centre,HLC,Kingsfield Computer Products Ltd,A039732,17/01/2018,1356884,666.01,Operational Equipment
North West Leicestershire District Council,31UH,Leisure Centres,Hermitage Leisure Centre,HLC,Open Box Promotions,A039721,17/01/2018,1356885,305,Publicity & Promotion
North West Leicestershire District Council,31UH,Leisure Centres,Hood Park Bar and Catering,HPBC,Catering Services (Supplies) Ltd,A000310,17/01/2018,1356890,261.48,Bar and Catering Provisions
North West Leicestershire District Council,31UH,Street Management,Environment - Street Scene,ESS,Kings Armoured Security Services Ltd,A004468,17/01/2018,1356894,1197.53,Cash Collection Services
North West Leicestershire District Council,31UH,Legal & Democratic,Legal Services,LDLS,Browne Jacobson LLP,A000251,17/01/2018,1356895,288.8,Legal & Professional Services
North West Leicestershire District Council,31UH,Legal & Democratic,Legal Services,LDLS,Rowena Meager,A043951,17/01/2018,1356896,2000,Legal & Professional Services
North West Leicestershire District Council,31UH,Environmental Health,Environmental Health & Licensing,EEHL,College Garth Boarding Kennels,A000385,17/01/2018,1356899,2384.5,Stray Dog Service
North West Leicestershire District Council,31UH,Street Management,Environment - Street Scene,ESS,EPT SERVICES,A039764,17/01/2018,1356901,463.8,Publicity & Promotion
North West Leicestershire District Council,31UH,Leisure Centres,Hermitage Leisure Centre,HLC,City Electrical Factors Limited,A035306,24/01/2018,1356902,449.34,Buildings-General repairs and Maintenance
North West Leicestershire District Council,31UH,Communications,Corporate - Customer Services,CS,Qmatic (United Kingdom) Ltd,A040610,17/01/2018,1356904,4668.4,Computing
North West Leicestershire District Council,31UH,Finance,Head of Finance,HOFI,CIPFA,A027467,17/01/2018,1356905,785,Training Courses (Organised)
North West Leicestershire District Council,31UH,Housing Repairs,HRA Housing Repairs & Maintenance,HRAHRM,Kaefer Ltd,A044187,17/01/2018,1356911,3824.99,Contract Payments (Dws) Ext
North West Leicestershire District Council,31UH,Housing Repairs,HRA Housing Repairs & Maintenance,HRAHRM,Sure Maintenance Ltd,A040460,17/01/2018,1356912,9204.96,Plumbing & Heating
North West Leicestershire District Council,31UH,Housing Repairs,HRA Housing Repairs & Maintenance,HRAHRM,Sure Maintenance Ltd,A040460,17/01/2018,1356913,3363.3,Plumbing & Heating
North West Leicestershire District Council,31UH,Street Management,Environment Transport,ENOT,Salt Union Ltd,A001433,17/01/2018,1356915,1189.26,Ground Maintenance- Materials
North West Leicestershire District Council,31UH,Housing Repairs,HRA Housing Repairs & Maintenance,HRAHRM,Sure Maintenance Ltd,A040460,17/01/2018,1356916,303,Plumbing & Heating
North West Leicestershire District Council,31UH,Property Services,Property Commercial Lettings,PROPCL,T Denman & Sons (Melton Mowbray) Ltd,A030887,17/01/2018,1356917,311.2,General Repairs
North West Leicestershire District Council,31UH,Street Management,Environment Transport,ENOT,Lee Wells Autobodies Ltd,A031849,17/01/2018,1356929,630,Non Insurance damage repairs
North West Leicestershire District Council,31UH,Housing Repairs,HRA Housing Repairs & Maintenance,HRAHRM,Kaefer Ltd,A044187,17/01/2018,1356930,4379.42,Contract Payments (Dws) Ext
North West Leicestershire District Council,31UH,Property Services,Property Facilities Management,PROPFM,Interserve Construction Limited,A041939,17/01/2018,1356931,109995.79,Contract Payments (Other) Ext
North West Leicestershire District Council,31UH,Leisure Centres,Hood Park Bar and Catering,HPBC,Snackline Direct Ltd,A042489,17/01/2018,1356933,1104.3,Bar and Catering Provisions
North West Leicestershire District Council,31UH,Street Management,Environment Transport,ENOT,Certas Energy Uk Ltd,A043448,17/01/2018,1357003,17834.57,Fuel
North West Leicestershire District Council,31UH,Street Management,Environment Transport,ENOT,Certas Energy Uk Ltd,A043448,17/01/2018,1357004,520.56,Fuel
North West Leicestershire District Council,31UH,Leisure & Culture,Cultural Services Arts & Events,CULTEV,Coalville Times Ltd,A000374,17/01/2018,1357005,372,Advertising
North West Leicestershire District Council,31UH,Property Services,Property Facilities Management,PROPFM,Thomas Cassie & Sons (Leicester) Ltd,A044078,17/01/2018,1357011,348.15,Buildings-General repairs and Maintenance
North West Leicestershire District Council,31UH,Leisure Centres,Hermitage Leisure Centre,HLC,Leicestershire County Council Central Print,A037238,17/01/2018,1357012,381.18,Publicity & Promotion
North West Leicestershire District Council,31UH,Housing,HRA Performance & Business Support,HRAPBS,Marsh Limited,A042169,17/01/2018,1357013,9482.16,Insurance - Tenants Contributions
North West Leicestershire District Council,31UH,Environmental Health,Environmental Health & Licensing,EEHL,Mega Arumugam,A043638,24/01/2018,1357014,350,Training Courses (Organised)
North West Leicestershire District Council,31UH,Finance,Revenues,REVS,Hinckley & Bosworth Borough Council,A000770,17/01/2018,1357016,20139.25,Agency Staff
North West Leicestershire District Council,31UH,Street Management,Environment Transport,ENOT,Kingsway Tyres (Stamford) Ltd,A004457,17/01/2018,1357020,830,Vehicle Parts
North West Leicestershire District Council,31UH,Leisure Centres,Hermitage Leisure Centre,HLC,Ludlow Seating Services Ltd,A044177,17/01/2018,1357021,630,Service Contracts
North West Leicestershire District Council,31UH,Leisure Centres,Castle Donington Community College,CDCC,Elliott Group Limited,A005413,17/01/2018,1357025,522.58,Secure Storage
North West Leicestershire District Council,31UH,Leisure Centres,Hermitage Bar & Catering,HLBC,Molson Coors Brewing Company (UK) Ltd,A044397,17/01/2018,1357027,323.23,Bar and Catering Provisions
North West Leicestershire District Council,31UH,Street Management,Environment Transport,ENOT,Westbury Industrial Supplies Limited,A009933,17/01/2018,1357037,395.6,Protective Clothing
North West Leicestershire District Council,31UH,Street Management,Environment - Street Scene,ESS,Healthmatic Limited,A002984,17/01/2018,1357040,565,General Repairs
North West Leicestershire District Council,31UH,Street Management,Environment - Street Scene,ESS,EPT SERVICES,A039764,17/01/2018,1357041,500,Grants
North West Leicestershire District Council,31UH,Street Management,Environment Transport,ENOT,Watling JCB Ltd,A032114,17/01/2018,1357042,711,Scheduled Servicing - Parts
North West Leicestershire District Council,31UH,Street Management,Environment Waste Management,ENOWM,Whitespace Work Software Ltd,A041243,17/01/2018,1357044,1900,Computing
North West Leicestershire District Council,31UH,Property Services,Property Facilities Management,PROPFM,TECSERV UK LIMITED,A028261,17/01/2018,1357045,794.3,General Repairs
North West Leicestershire District Council,31UH,Street Management,Environment Transport,ENOT,Calor Gas Limited,A032686,17/01/2018,1357046,1141.88,Gas
North West Leicestershire District Council,31UH,Housing Strategy,Community - Housing Strategy,HS,Homestart (N.W. Leics),A000780,17/01/2018,1357057,4905,Grants
North West Leicestershire District Council,31UH,Housing Strategy,Community - Housing Strategy,HS,EMH Homes,A039302,17/01/2018,1357058,9355,Grants
North West Leicestershire District Council,31UH,Housing Repairs,HRA Housing Repairs & Maintenance,HRAHRM,PPG Architectural Coatings Ltd,A000876,17/01/2018,1357059,1918.59,Internal Decorations
North West Leicestershire District Council,31UH,Finance,Exchequer Services,EXCH,Comensura Limited,A036958,17/01/2018,1357060,27273.11,Agency Staff
North West Leicestershire District Council,31UH,Legal & Democratic,Legal Services,LDLS,Browne Jacobson LLP,A000251,17/01/2018,1357061,450,Legal & Professional Services
North West Leicestershire District Council,31UH,Legal & Democratic,Legal Services,LDLS,Thomson Reuters (Professional) UK Limited,A037595,17/01/2018,1357062,1072.34,Computing
North West Leicestershire District Council,31UH,Planning & Development,Environment - Town Centre/CCTV,ECCTV,Strandz,A044548,17/01/2018,1357067,28499.42,Grants
North West Leicestershire District Council,31UH,Finance,Exchequer Services,EXCH,Click Travel Ltd,A044308,17/01/2018,1357072,839.38,Subsistence - Employees
North West Leicestershire District Council,31UH,Legal & Democratic,Legal Services,LDLS,Martin Lee & Co,A030613,17/01/2018,1357077,255,External Legal Fees & Advice
North West Leicestershire District Council,31UH,Housing Repairs,HRA Housing Repairs & Maintenance,HRAHRM,Ward Recycling,A035471,17/01/2018,1357078,280.58,Tipping Charges
North West Leicestershire District Council,31UH,Housing Repairs,HRA Housing Repairs & Maintenance,HRAHRM,Ward Recycling,A035471,17/01/2018,1357079,416.03,Tipping Charges
North West Leicestershire District Council,31UH,Housing Repairs,HRA Housing Repairs & Maintenance,HRAHRM,Ward Recycling,A035471,17/01/2018,1357080,255.85,Tipping Charges
North West Leicestershire District Council,31UH,Housing Repairs,HRA Housing Repairs & Maintenance,HRAHRM,Ward Recycling,A035471,17/01/2018,1357081,254.78,Tipping Charges
North West Leicestershire District Council,31UH,Housing Repairs,HRA Housing Repairs & Maintenance,HRAHRM,Michael Dyson Associates Ltd,A028431,17/01/2018,1357082,3000,Consultants Fees
North West Leicestershire District Council,31UH,Leisure & Culture,Leisure & Cult Mangt,LCM,Measham Museum Society,A034592,17/01/2018,1357084,500,Grants
North West Leicestershire District Council,31UH,Housing Repairs,HRA Housing Repairs & Maintenance,HRAHRM,Ward Recycling,A035471,17/01/2018,1357091,580.51,Tipping Charges
North West Leicestershire District Council,31UH,Housing Repairs,HRA Housing Repairs & Maintenance,HRAHRM,TECSERV UK LIMITED,A028261,17/01/2018,1357096,660.17,Door Entry Systems
North West Leicestershire District Council,31UH,Housing Repairs,HRA Housing Repairs & Maintenance,HRAHRM,Orbis Property Protection Ltd,A028149,17/01/2018,1357122,294,Void Property Clearance Services
North West Leicestershire District Council,31UH,Housing Repairs,HRA Housing Repairs & Maintenance,HRAHRM,Orbis Property Protection Ltd,A028149,17/01/2018,1357123,272.5,Void Property Clearance Services
North West Leicestershire District Council,31UH,Housing Repairs,HRA Housing Repairs & Maintenance,HRAHRM,Orbis Property Protection Ltd,A028149,17/01/2018,1357127,436.5,Void Property Clearance Services
North West Leicestershire District Council,31UH,Housing Repairs,HRA Housing Repairs & Maintenance,HRAHRM,National Grid Gas Plc,A032629,17/01/2018,1357131,596,Gas related Services
North West Leicestershire District Council,31UH,Legal & Democratic,Legal Services,LDLS,Shoosmiths Solicitors,A000133,19/01/2018,1357139,12217.2,Legal & Professional Services
North West Leicestershire District Council,31UH,Housing Repairs,HRA Housing Repairs & Maintenance,HRAHRM,Collective Enterprises Ltd,A036453,19/01/2018,1357141,41979.74,General Materials
North West Leicestershire District Council,31UH,Housing Repairs,HRA Housing Repairs & Maintenance,HRAHRM,Collective Enterprises Ltd,A036453,19/01/2018,1357142,64974.76,General Materials
North West Leicestershire District Council,31UH,Housing Repairs,HRA Housing Repairs & Maintenance,HRAHRM,Collective Enterprises Ltd,A036453,19/01/2018,1357143,60960.44,General Materials
North West Leicestershire District Council,31UH,Housing Repairs,HRA Housing Repairs & Maintenance,HRAHRM,Collective Enterprises Ltd,A036453,19/01/2018,1357144,77755.53,General Materials
North West Leicestershire District Council,31UH,Housing Repairs,HRA Housing Repairs & Maintenance,HRAHRM,Collective Enterprises Ltd,A036453,19/01/2018,1357145,41317.09,General Materials
North West Leicestershire District Council,31UH,Finance,Financial Planning,FINPLA,Goldman Sachs Money Market Fund,A039248,19/01/2018,1357147,2700000,Policy Lending
North West Leicestershire District Council,31UH,Finance,Financial Planning,FINPLA,Scottish Widows Investment Partnerhiip,A039247,19/01/2018,1357148,5300000,Policy Lending
North West Leicestershire District Council,31UH,Finance,Financial Planning,FINPLA,Blackrock Cash Management,A039249,19/01/2018,1357149,2000000,Policy Lending
North West Leicestershire District Council,31UH,Finance,Exchequer Services,EXCH,Vodafone Limited,A001861,19/01/2018,1357150,2563.43,Mobile Telephones
North West Leicestershire District Council,31UH,Planning & Development,Environment Community Planning,ECP,NEF Consulting,A044543,24/01/2018,1357154,295,Training Courses (Organised)
North West Leicestershire District Council,31UH,Street Management,Environment - Street Scene,ESS,Metric Group Ltd (Sales),A028996,24/01/2018,1357161,252,Subscriptions
North West Leicestershire District Council,31UH,Leisure & Culture,Sport & Physical Activity,SPA,Worth-it Projects (social enterprise),A040478,24/01/2018,1357171,3250,Local Sports Alliance
North West Leicestershire District Council,31UH,Leisure & Culture,Sport & Physical Activity,SPA,Leicestershire County Council,A000950,24/01/2018,1357172,4992,FAME classes
North West Leicestershire District Council,31UH,Finance,Financial Planning,FINPLA,CIPFA,A027467,24/01/2018,1357174,1325.85,Training Courses (Organised)
North West Leicestershire District Council,31UH,Leisure Centres,Hermitage Leisure Centre,HLC,J P Lennard Ltd,A000969,24/01/2018,1357178,285,Operational Equipment
North West Leicestershire District Council,31UH,Leisure Centres,Hood Park Leisure Centre,HPLC,T Denman & Sons (Melton Mowbray) Ltd,A030887,24/01/2018,1357179,1097.6,General Repairs
North West Leicestershire District Council,31UH,Chief Exec,Chief Executive,CHEX,RPT Consulting Ltd,A043782,24/01/2018,1357184,1523.5,Consultants Fees
North West Leicestershire District Council,31UH,Chief Exec,Chief Executive,CHEX,RPT Consulting Ltd,A043782,24/01/2018,1357185,6094,Consultants Fees
North West Leicestershire District Council,31UH,Planning & Development,Environment Community Planning,ECP,Solon Security,A035272,24/01/2018,1357193,302.74,Security and Safety Equipment
North West Leicestershire District Council,31UH,Information Technology,ICT Services,ICT,Sec-1,A036989,24/01/2018,1357195,1599.63,Admin Equipment-Maintenance
North West Leicestershire District Council,31UH,Leisure Centres,Hermitage Leisure Centre,HLC,Craftsman Quality Lockers Ltd,A039532,24/01/2018,1357197,415,Operational Equipment
North West Leicestershire District Council,31UH,Information Technology,ICT Services,ICT,Kingsfield Computer Products Ltd,A039732,24/01/2018,1357204,599.75,Operational Equipment
North West Leicestershire District Council,31UH,Property Services,Property Facilities Management,PROPFM,Rentokil Initial UK Limited,A037013,24/01/2018,1357208,470.59,General Repairs
North West Leicestershire District Council,31UH,Housing,HRA Housing Management,HRAHM,Water Plus Limited,A044043,24/01/2018,1357210,808.15,Water Charges (Metered)
North West Leicestershire District Council,31UH,Property Services,Property Facilities Management,PROPFM,John Merison BMC Ltd,A001092,24/01/2018,1357211,687.1,Contract Payments (Other) Ext
North West Leicestershire District Council,31UH,Chief Exec,Chief Executive,CHEX,Sable Leigh Consultancy Ltd T/A SLC Rail,A042727,24/01/2018,1357212,1093.75,External Legal Fees & Advice
North West Leicestershire District Council,31UH,Chief Exec,Chief Executive,CHEX,Sable Leigh Consultancy Ltd T/A SLC Rail,A042727,24/01/2018,1357213,1156.25,External Legal Fees & Advice
North West Leicestershire District Council,31UH,Chief Exec,Chief Executive,CHEX,Sable Leigh Consultancy Ltd T/A SLC Rail,A042727,24/01/2018,1357214,1764.8,External Legal Fees & Advice
North West Leicestershire District Council,31UH,Information Technology,ICT Services,ICT,Orange Plc,A018592,24/01/2018,1357215,4227.94,Mobile Telephones
North West Leicestershire District Council,31UH,Leisure Centres,Hermitage Leisure Centre,HLC,Measham Leisure Centre,A027454,24/01/2018,1357216,2266.52,Measham LC Lifestyle DD
North West Leicestershire District Council,31UH,Planning & Development,Environment - Development Control,EDC,Edwards & Edwards Consultancy Ltd,A041694,24/01/2018,1357223,1790,Ecology & Archeology Consultancy
North West Leicestershire District Council,31UH,Property Services,Property Facilities Management,PROPFM,Eaton Electrical Ltd,A044048,24/01/2018,1357224,440,Electrical Maintenance
North West Leicestershire District Council,31UH,Leisure Centres,Hermitage Leisure Centre,HLC,Kingsfield Computer Products Ltd,A039732,24/01/2018,1357228,274.59,Operational Equipment
North West Leicestershire District Council,31UH,Leisure Centres,Hermitage Leisure Centre,HLC,Hugglescote Community Centre,A028420,24/01/2018,1357231,266,Hire of Community Centre
North West Leicestershire District Council,31UH,Leisure Centres,Hermitage Leisure Centre,HLC,Hugglescote Community Centre,A028420,24/01/2018,1357232,284,Hire of Community Centre
North West Leicestershire District Council,31UH,Leisure Centres,Hermitage Bar & Catering,HLBC,Hopwells Frozen Foods Limited,A000783,24/01/2018,1357234,254.25,Bar and Catering Provisions
North West Leicestershire District Council,31UH,Leisure Centres,Hermitage Leisure Centre,HLC,The International Certification and Training Academy,A044098,24/01/2018,1357235,565,First Aid Equipment
North West Leicestershire District Council,31UH,Leisure Centres,Hood Park Bar and Catering,HPBC,Snackline Direct Ltd,A042489,24/01/2018,1357252,254.06,Bar and Catering Provisions
North West Leicestershire District Council,31UH,Leisure Centres,Hood Park Leisure Centre,HPLC,J P Lennard Ltd,A000969,24/01/2018,1357255,265.26,Operational Equipment
North West Leicestershire District Council,31UH,Street Management,Environment Transport,ENOT,Ford & Slater Group Ltd,A000625,24/01/2018,1357270,292,Vehicle Parts
North West Leicestershire District Council,31UH,Street Management,Environment Transport,ENOT,Malvern Tyres,A035175,24/01/2018,1357277,311.6,Vehicle Parts
North West Leicestershire District Council,31UH,Property Services,Property Facilities Management,PROPFM,Eaton Electrical Ltd,A044048,24/01/2018,1357283,638.08,Electrical Maintenance
North West Leicestershire District Council,31UH,Street Management,Environment Transport,ENOT,Danline International Ltd,A029265,24/01/2018,1357285,1440,Repairs - Parts
North West Leicestershire District Council,31UH,Street Management,Environment Parks,ENOP,SAUNDERS OF STAPLETON LTD,A029076,24/01/2018,1357289,325,Operational Equipment
North West Leicestershire District Council,31UH,Planning & Development,Environment Planning Policy,EPP,Edwards & Edwards Consultancy Ltd,A041694,24/01/2018,1357292,3700,Consultants Fees
North West Leicestershire District Council,31UH,Street Management,Environment Transport,ENOT,Westbury Industrial Supplies Limited,A009933,24/01/2018,1357300,350.04,Protective Clothing
North West Leicestershire District Council,31UH,Housing Repairs,HRA Housing Repairs & Maintenance,HRAHRM,Oneserve Ltd,A041321,24/01/2018,1357302,2400,Computing
North West Leicestershire District Council,31UH,Communications,Corporate - Customer Services,CS,Neopost Limited,A000079,24/01/2018,1357303,4000,Postages
North West Leicestershire District Council,31UH,Legal & Democratic,Legal Services,LDLS,Kerf Ltd,A044557,24/01/2018,1357306,500,Legal & Professional Services
North West Leicestershire District Council,31UH,Street Management,Environment Waste Management,ENOWM,ESE World Limited,A001253,24/01/2018,1357311,2388.2,General Materials
North West Leicestershire District Council,31UH,Finance,Financial Planning,FINPLA,NHS West Leicestershire,A042958,24/01/2018,1357312,32195.92,Section 106 Payment
North West Leicestershire District Council,31UH,Information Technology,ICT Services,ICT,Adept Telecom Plc,A044193,24/01/2018,1357315,18799.92,Contract Payments (Other) Ext
North West Leicestershire District Council,31UH,Information Technology,ICT Services,ICT,Six Degrees Technology Group Ltd,A044205,24/01/2018,1357316,664.68,ICT Equipment
North West Leicestershire District Council,31UH,Leisure Centres,Hermitage Bar & Catering,HLBC,Snackline Direct Ltd,A042489,24/01/2018,1357318,808.74,Bar and Catering Provisions
North West Leicestershire District Council,31UH,Finance,Exchequer Services,EXCH,Comensura Limited,A036958,24/01/2018,1357424,35036.87,Agency Staff
North West Leicestershire District Council,31UH,Leisure & Culture,Leisure & Cult Mangt,LCM,Deana Wildgoose,A042162,24/01/2018,1357429,23320.54,Consultants Fees
North West Leicestershire District Council,31UH,Housing Repairs,HRA Housing Repairs & Maintenance,HRAHRM,Sure Maintenance Ltd,A040460,24/01/2018,1357430,750,Plumbing & Heating
North West Leicestershire District Council,31UH,Street Management,Environment Transport,ENOT,Shepshed Auto Spares Ltd,A043917,24/01/2018,1357454,345.02,Vehicle Parts
North West Leicestershire District Council,31UH,Street Management,Environment Transport,ENOT,Guest Trucks,A037275,24/01/2018,1357456,303.4,Vehicle Parts
North West Leicestershire District Council,31UH,Information Technology,ICT Services,ICT,Support Warehouse Ltd T/A Care Pack Sales,A042093,24/01/2018,1357460,1556,Administrative Equipment
North West Leicestershire District Council,31UH,Housing Repairs,HRA Housing Repairs & Maintenance,HRAHRM,NICEIC Sales,A026251,24/01/2018,1357467,404.6,Consumable Materials
North West Leicestershire District Council,31UH,Housing Repairs,HRA Housing Repairs & Maintenance,HRAHRM,Western Power Distribution,A038499,24/01/2018,1357472,24038.38,Utility Connection Services
